bitfinex/quotes_SOLUSD_20250815
["timestamp","ask_amount","ask_price","bid_price","bid_amount"]
[1755224115965,0.66,194.3,194.28,4.64350128]
[1755224116164,0.66,194.29,194.27,41.26350128]
[1755224116368,0.66,194.28,194.27,36.62]
[1755224116565,0.66,194.28,194.26,4.64350128]
[1755224116980,3.46005837,194.31,194.27,4.64350128]
[1755224117268,4.12005837,194.31,194.27,4.64350128]
[1755224117512,0.66,194.3,194.27,4.64350128]
[1755224117688,0.66,194.3,194.27,9.79093468]
[1755224118003,0.66,194.29,194.26,5.1477246]
[1755224118303,0.66,194.28,194.26,9.79122588]
[1755224118472,4.12005837,194.31,194.27,4.64350128]
[1755224118667,4.12005837,194.31,194.29,4.64350128]
[1755224118668,3.46005837,194.31,194.29,4.64350128]
[1755224118890,1e-08,194.31,194.3,4.64350128]
[1755224119574,1e-08,194.31,194.3,9.79018167]
[1755224121785,1e-08,194.31,194.3,4.64350128]
[1755224122002,0.66000001,194.31,194.28,9.7906698]
[1755224122293,1e-08,194.31,194.3,4.64350128]
[1755224122501,1e-08,194.31,194.3,5.31350128]
[1755224123293,1e-08,194.31,194.3,4.64350128]
[1755224124895,0.66000001,194.31,194.28,9.79049093]
[1755224125096,0.66,194.3,194.28,9.79049093]
[1755224125600,0.66,194.29,194.27,36.6]
[1755224125782,0.66,194.28,194.27,36.6]
[1755224125984,0.66,194.28,194.26,9.82099906]
[1755224125985,0.66,194.28,194.26,35.82099906]
[1755224126183,4.11914502,194.31,194.27,4.64350128]
[1755224126385,3.45914502,194.31,194.29,4.64350128]
[1755224126777,1e-08,194.31,194.3,4.64350128]
[1755224127086,0.66000001,194.31,194.28,4.64350128]
[1755224127285,0.66,194.3,194.28,4.64350128]
[1755224127495,1e-08,194.31,194.28,4.64350128]
[1755224128001,0.66000001,194.31,194.28,4.64350128]
[1755224128201,0.66,194.3,194.26,5.17764384]
[1755224128585,0.66,194.3,194.27,4.64350128]
[1755224128986,0.66,194.3,194.27,5.14740399]
[1755224129186,0.66,194.29,194.26,0.03]
[1755224129385,8.10374251,194.31,194.26,0.03]
[1755224129597,0.66,194.29,194.26,0.03]
[1755224130215,0.66,194.28,194.26,0.03]
[1755224130385,3.46024123,194.31,194.26,9.82118298]
[1755224130694,0.66,194.3,194.27,4.64350128]
[1755224131075,0.66,194.3,194.27,9.79094357]
[1755224131593,0.66,194.3,194.26,9.82118873]
[1755224131785,0.66,194.29,194.26,9.82118873]
[1755224132293,0.66000001,194.31,194.26,9.82118873]
[1755224132503,0.66000001,194.31,194.27,4.64350128]
[1755224132890,1e-08,194.31,194.3,4.64350128]
[1755224133081,1e-08,194.31,194.3,9.79018167]
[1755224133287,1e-08,194.31,194.3,10.50018167]
[1755224133713,1e-08,194.31,194.3,47.10018167]
[1755224133881,1e-08,194.31,194.3,47.6148497]
[1755224134978,1e-08,194.31,194.3,47.10018167]
[1755224137528,1e-08,194.32,194.3,73.10018167]
[1755224137808,1e-08,194.32,194.31,5.86814283]
[1755224139207,0.06,194.33,194.31,15.65805963]
[1755224139515,0.06,194.33,194.32,72.59700256]
[1755224140384,0.06,194.33,194.32,67.95350128]
[1755224140615,0.06,194.33,194.32,30.64350128]
[1755224140800,0.06,194.33,194.32,67.24350128]
[1755224141111,0.06,194.33,194.32,72.38965195]
[1755224142800,0.06,194.33,194.32,67.74615067]
[1755224143012,0.06,194.33,194.32,73.09965195]
[1755224145403,1e-08,194.36,194.35,26.0]
[1755224145607,1e-08,194.37,194.35,67.75803691]
[1755224145922,1e-08,194.39,194.37,31.14482687]
[1755224146089,1e-08,194.39,194.38,41.24350128]
[1755224146407,1e-08,194.39,194.38,41.95350128]
[1755224146609,0.06,194.41,194.38,41.95350128]
[1755224146610,1e-08,194.4,194.38,41.95350128]
[1755224146809,1e-08,194.4,194.39,4.64350128]
[1755224147403,1e-08,194.4,194.39,67.24350128]
[1755224147921,1e-08,194.4,194.39,72.38779882]
[1755224148095,1e-08,194.4,194.39,73.09779882]
[1755224148512,1e-08,194.4,194.39,72.38779882]
[1755224150204,0.66000001,194.4,194.39,41.72429754]
[1755224150521,0.66000001,194.4,194.39,46.36779882]
[1755224150724,1e-08,194.4,194.39,46.36779882]
[1755224151107,1e-08,194.4,194.39,47.07779882]
[1755224151306,1e-08,194.4,194.39,73.07779882]
[1755224151991,1e-08,194.41,194.39,47.07779882]
[1755224152194,1e-08,194.41,194.4,5.35350128]
[1755224152920,1e-08,194.41,194.39,41.72429754]
[1755224153121,1e-08,194.41,194.4,4.64350128]
[1755224154008,0.66000001,194.41,194.4,67.22350128]
[1755224154210,0.66000001,194.41,194.4,72.3675342]
[1755224154927,1e-08,194.41,194.4,72.3675342]
[1755224158908,1e-08,194.41,194.4,35.7875342]
[1755224159228,1e-08,194.41,194.4,46.3675342]
[1755224160907,1e-08,194.41,194.4,73.0675342]
[1755224161217,1e-08,194.41,194.4,72.3675342]
[1755224162132,0.69000001,194.41,194.4,35.7875342]
[1755224162436,0.69000001,194.41,194.4,72.3475342]
[1755224163007,0.69000001,194.41,194.4,46.3475342]
[1755224163632,0.69000001,194.41,194.4,41.20350128]
[1755224164040,0.69000001,194.41,194.4,36.56]
[1755224164711,0.69000001,194.41,194.4,41.20350128]
[1755224165635,0.69000001,194.41,194.4,36.56]
[1755224165827,0.69000001,194.41,194.36,4.64350128]
[1755224166136,0.69000001,194.41,194.37,41.20350128]
[1755224166328,0.69,194.4,194.38,36.56]
[1755224166633,0.69,194.39,194.38,36.56]
[1755224170230,0.69,194.39,194.38,41.70456219]
[1755224170419,0.69,194.39,194.38,36.56]
[1755224171929,0.69,194.39,194.36,9.78854126]
[1755224172119,0.69,194.39,194.37,36.56]
[1755224172513,0.69,194.39,194.36,9.78854126]
[1755224172843,0.69,194.38,194.37,36.56]
[1755224174447,0.69,194.38,194.36,9.78854126]
[1755224174448,0.69,194.38,194.36,36.56]
[1755224174653,0.69,194.37,194.36,36.56]
[1755224174826,0.69,194.39,194.36,36.56]
[1755224175020,0.69,194.38,194.36,36.56]
[1755224176344,4.13544753,194.38,194.36,36.56]
[1755224176541,0.69,194.38,194.36,36.56]
[1755224176941,4.13544753,194.38,194.36,36.56]
[1755224177130,13.23302103,194.4,194.36,36.56]
[1755224177453,4.13544753,194.39,194.35,36.56]
[1755224177616,4.13544753,194.39,194.34,0.03]
[1755224177617,8.08894881,194.38,194.34,0.03]
[1755224177815,3.44544753,194.37,194.34,0.03]
[1755224178021,3.44544753,194.36,194.34,0.03]
[1755224178337,0.69,194.36,194.34,0.03]
[1755224180941,4.14896177,194.35,194.34,0.03]
[1755224182154,0.69,194.35,194.34,0.03]
[1755224187348,4.14759572,194.35,194.34,0.03]
[1755224187561,0.69,194.35,194.34,0.03]
[1755224188727,4.1475455,194.35,194.34,0.03]
[1755224188928,0.69,194.35,194.34,0.03]
[1755224192148,13.93600371,194.35,194.34,0.03]
[1755224192650,13.91600371,194.35,194.34,0.03]
[1755224192824,29.02221928,194.35,194.34,0.03]
[1755224193026,32.86250998,194.35,194.34,0.03]
[1755224193225,29.02221928,194.35,194.34,0.03]
[1755224193751,32.86152769,194.35,194.34,0.03]
[1755224194646,62.86152769,194.35,194.34,0.03]
[1755224194850,32.86152769,194.35,194.34,0.03]
[1755224195052,29.02221928,194.35,194.34,0.03]
[1755224197864,59.02221928,194.35,194.34,0.03]
[1755224198445,62.85854503,194.35,194.34,0.03]
[1755224202867,99.41854503,194.35,194.34,0.03]
[1755224203242,97.31854503,194.35,194.34,0.03]
[1755224204537,67.31854503,194.35,194.34,0.03]
[1755224204953,67.31707543,194.35,194.34,0.03]
[1755224206436,30.75707543,194.35,194.34,0.03]
[1755224206658,67.31707543,194.35,194.34,0.03]
[1755224207639,101.62189146,194.35,194.34,0.03]
[1755224207840,97.31707543,194.35,194.32,0.03]
[1755224208150,19.74971685,194.33,194.32,0.03]
[1755224208349,60.144573,194.33,194.32,0.03]
[1755224208549,90.814573,194.33,194.32,0.03]
[1755224208762,147.00621557,194.32,194.3,0.03]
[1755224208948,60.144573,194.31,194.3,0.03]
[1755224209344,60.814573,194.31,194.3,0.03]
[1755224209560,95.96098852,194.31,194.3,0.03]
[1755224210651,54.89613237,194.31,194.3,0.03]
[1755224210853,61.45613237,194.31,194.3,0.03]
[1755224211355,62.12613237,194.31,194.3,0.03]
[1755224211842,65.96251301,194.31,194.3,0.03]
[1755224212160,100.27956831,194.31,194.3,0.03]
[1755224213565,95.96251301,194.31,194.3,0.03]
[1755224214369,100.27956831,194.31,194.3,0.03]
[1755224215250,99.41462315,194.31,194.3,0.03]
[1755224215574,103.73167845,194.31,194.3,0.03]
[1755224218265,103.73191221,194.31,194.3,0.03]
[1755224220277,99.41485691,194.31,194.3,0.03]
[1755224220989,99.41598533,194.31,194.3,0.03]
[1755224221367,15.10621557,194.3,194.28,1e-08]
[1755224221567,15.10621557,194.3,194.26,0.03]
[1755224221568,25.10621557,194.28,194.24,0.03]
[1755224221790,19.74971685,194.25,194.24,0.03]
[1755224221974,67.91727384,194.25,194.24,0.03]
[1755224222174,73.73527898,194.25,194.24,0.03]
[1755224222489,69.41757495,194.25,194.24,0.03]
[1755224222691,73.73527898,194.25,194.24,0.03]
[1755224223166,103.73527898,194.25,194.24,0.03]
[1755224223762,99.41757495,194.25,194.24,0.03]
[1755224224176,103.73527898,194.25,194.24,0.03]
[1755224224581,15.10621557,194.24,194.22,0.03]
[1755224224874,27.37977683,194.24,194.22,0.03]
[1755224225079,27.70956981,194.24,194.22,0.03]
[1755224225276,22.39606853,194.24,194.23,0.73]
[1755224225482,64.91145807,194.24,194.23,0.03]
[1755224225698,69.41469962,194.24,194.23,0.03]
[1755224226200,65.58145807,194.24,194.23,0.03]
[1755224226501,69.41374085,194.24,194.23,0.03]
[1755224226696,64.10023957,194.24,194.23,0.03]
[1755224226996,64.91145807,194.24,194.23,0.03]
[1755224227382,59.76318789,194.24,194.23,0.73]
[1755224227612,94.91145807,194.24,194.23,0.03]
[1755224228700,95.58145807,194.24,194.23,0.03]
[1755224228904,94.91145807,194.24,194.23,0.03]
[1755224229399,95.58145807,194.24,194.23,0.03]
[1755224229608,85.11968661,194.24,194.23,0.03]
[1755224229798,53.20318789,194.24,194.23,0.03]
[1755224230120,89.76318789,194.24,194.23,0.73]
[1755224230303,94.91145807,194.24,194.23,0.03]
[1755224230503,99.41333614,194.24,194.23,0.03]
[1755224231611,95.58145807,194.24,194.23,0.03]
[1755224231805,99.41357241,194.24,194.23,0.03]
[1755224238116,103.72728071,194.24,194.23,0.03]
[1755224238887,98.74357241,194.24,194.23,0.03]
[1755224242430,99.41357241,194.24,194.23,0.03]
[1755224243220,98.74357241,194.24,194.23,0.03]
[1755224244021,103.72728071,194.24,194.23,0.03]
[1755224245730,99.41357241,194.24,194.22,0.03]
[1755224246022,62.02273517,194.23,194.22,0.03]
[1755224246207,58.19062083,194.23,194.22,0.03]
[1755224246412,62.02920397,194.23,194.22,0.03]
[1755224246612,193.92920397,194.23,194.22,0.03]
[1755224247128,209.40868097,194.23,194.22,0.03]
[1755224247298,24.89851717,194.22,194.21,1356.78672793]
[1755224247501,73.73905345,194.22,194.21,1356.78672793]
[1755224247901,103.73905345,194.22,194.21,1356.78672793]
[1755224249025,99.42057135,194.22,194.21,1330.39023522]
[1755224249325,99.42057135,194.22,194.21,1277.51666848]
[1755224251424,98.75057135,194.22,194.21,1277.51666848]
[1755224251632,52.39826975,194.22,194.21,1278.20666848]
[1755224251809,154.29826975,194.22,194.21,1278.20666848]
[1755224252134,183.56621557,194.22,194.21,1278.20666848]
[1755224253041,51.66621557,194.22,194.21,1278.20666848]
[1755224253226,55.12439764,194.22,194.21,1278.20666848]
[1755224253920,40.01818207,194.22,194.21,1278.20666848]
[1755224254234,40.01818207,194.22,194.21,1282.85016976]
[1755224254832,40.01818207,194.22,194.21,1288.20666848]
[1755224255738,40.01818207,194.22,194.21,1292.85016976]
[1755224256834,36.54,194.24,194.21,1297.9992352]
[1755224257033,51.64621557,194.24,194.23,4.64350128]
[1755224257239,85.10646148,194.24,194.23,5.33350128]
[1755224257444,85.10646148,194.24,194.23,0.69]
[1755224257939,0.06,194.28,194.23,10.48203652]
[1755224258116,36.6,194.28,194.27,4.64350128]
[1755224258316,40.05997988,194.28,194.27,0.69]
[1755224261638,15.10621557,194.27,194.23,36.54]
[1755224261820,44.64348116,194.26,194.21,1288.20666848]
[1755224262020,3.45997988,194.25,194.22,0.69]
[1755224262322,39.99997988,194.24,194.22,0.69]
[1755224262527,3.45997988,194.23,194.21,1287.51666848]
[1755224262727,3.45997988,194.22,194.21,1288.20666848]
[1755224264822,3.45997988,194.22,194.21,1287.51666848]
[1755224265010,44.64348116,194.22,194.21,1287.51666848]
[1755224265331,64.89849705,194.22,194.21,1287.51666848]
[1755224265714,68.74412887,194.22,194.21,1287.51666848]
[1755224267419,69.40412887,194.22,194.21,1287.51666848]
[1755224268321,99.40412887,194.22,194.21,1287.51666848]
[1755224268521,99.40412887,194.22,194.21,1278.82123529]
[1755224270637,99.40412887,194.22,194.21,1251.86939746]
[1755224270840,99.40412887,194.22,194.21,1225.23107903]
[1755224271149,99.40412887,194.22,194.21,1199.27069189]
[1755224271928,98.72412887,194.22,194.21,1199.27069189]
[1755224272948,93.57532855,194.22,194.21,1199.27069189]
[1755224273151,98.72412887,194.22,194.21,1199.27069189]
[1755224273740,99.38412887,194.22,194.21,1199.27069189]
[1755224276453,98.72412887,194.22,194.21,1199.27069189]
[1755224277036,99.38412887,194.22,194.21,1199.27069189]
[1755224278361,114.92280787,194.22,194.21,1199.27069189]
[1755224280454,73.09930659,194.22,194.21,1199.27069189]
[1755224280636,68.78412887,194.22,194.21,1199.27069189]
[1755224280840,98.78412887,194.22,194.21,1199.27069189]
[1755224281240,94.14062759,194.22,194.21,1199.27069189]
[1755224281436,98.78412887,194.22,194.21,1199.27069189]
[1755224283152,99.50412887,194.22,194.21,1199.27069189]
[1755224289167,103.8350604,194.22,194.21,1199.27069189]
[1755224289372,103.1150604,194.22,194.21,1199.27069189]
[1755224289546,114.26440387,194.22,194.21,1199.27069189]
[1755224290964,114.98440387,194.22,194.21,1199.27069189]
[1755224292163,114.98044079,194.22,194.21,1199.27069189]
[1755224295150,114.98044079,194.22,194.21,1172.59204539]
[1755224295353,114.98044079,194.22,194.21,1144.44219001]
[1755224295354,117.66650501,194.22,194.21,1144.44219001]
[1755224295667,127.66650501,194.22,194.21,994.69627354]
[1755224295864,127.66650501,194.22,194.21,919.97872439]
[1755224296077,127.66650501,194.22,194.21,885.49608126]
[1755224296575,116.94650501,194.22,194.21,885.49608126]
[1755224296748,86.94650501,194.22,194.21,885.49608126]
[1755224297748,87.66650501,194.22,194.21,885.49608126]
[1755224297955,117.66650501,194.22,194.21,885.49608126]
[1755224298884,117.66650501,194.22,194.21,858.41087251]
[1755224299049,117.66650501,194.22,194.21,744.38657264]
[1755224299373,127.66650501,194.22,194.21,673.00248444]
[1755224299571,127.66650501,194.22,194.21,643.41283888]
[1755224300261,127.66650501,194.22,194.21,529.84048695]
[1755224300850,127.66645852,194.22,194.21,473.50644901]
[1755224301375,127.66645852,194.22,194.21,358.40418198]
[1755224301549,127.66645852,194.22,194.21,328.5805335]
[1755224301750,127.66645852,194.22,194.21,298.34479816]
[1755224302174,127.66645852,194.22,194.21,214.46395738]
[1755224302448,127.66645852,194.22,194.21,159.05882093]
[1755224302652,127.66645852,194.22,194.21,129.69251183]
[1755224302858,127.66645852,194.22,194.21,99.30425914]
[1755224303057,127.66645852,194.22,194.21,70.84907795]
[1755224303372,127.66645852,194.22,194.21,42.28917372]
[1755224303546,127.66645852,194.22,194.21,13.97912847]
[1755224303752,25.10621557,194.21,194.2,0.03]
[1755224303975,57.77131898,194.21,194.2,0.03]
[1755224304557,57.05131898,194.21,194.2,0.03]
[1755224305664,62.20038442,194.21,194.2,0.03]
[1755224306380,64.26474042,194.21,194.2,0.03]
[1755224307975,64.98474042,194.21,194.2,0.03]
[1755224308770,64.98474042,194.21,194.2,1e-08]
[1755224309378,66.91147883,194.21,194.19,1e-08]
[1755224309687,94.27131898,194.2,194.19,1e-08]
[1755224309982,99.42064956,194.2,194.19,1e-08]
[1755224310162,101.48521856,194.2,194.19,1e-08]
[1755224310369,100.76521856,194.2,194.19,1e-08]
[1755224310574,101.48521856,194.2,194.19,1e-08]
[1755224310781,111.48521856,194.2,194.19,1e-08]
[1755224310957,101.48521856,194.2,194.19,1e-08]
[1755224311154,111.48521856,194.2,194.18,0.03]
[1755224311365,111.48521856,194.2,194.17,1e-08]
[1755224311366,27.76131898,194.19,194.17,1e-08]
[1755224311573,225.45131898,194.18,194.17,1e-08]
[1755224311781,226.16131898,194.18,194.17,1e-08]
[1755224311986,222.31969673,194.18,194.17,1e-08]
[1755224312281,231.33251176,194.18,194.17,1e-08]
[1755224312690,227.47816685,194.18,194.17,1e-08]
[1755224313256,231.33330379,194.18,194.17,1e-08]
[1755224313672,235.6690401,194.18,194.17,1e-08]
[1755224313876,245.6690401,194.18,194.17,1e-08]
[1755224314078,241.81390316,194.18,194.17,1e-08]
[1755224314284,245.6690401,194.18,194.17,1e-08]
[1755224314688,245.66891291,194.18,194.17,1e-08]
[1755224315189,113.76891291,194.18,194.17,1e-08]
[1755224315886,116.45574498,194.18,194.17,1e-08]
[1755224316492,25.10621557,194.17,194.15,1e-08]
[1755224316692,15.10621557,194.15,194.14,1e-08]
[1755224316874,27.07331565,194.15,194.14,1e-08]
[1755224317198,29.84831165,194.15,194.14,1e-08]
[1755224317566,59.84831165,194.15,194.14,1e-08]
[1755224318073,64.99896835,194.15,194.14,1e-08]
[1755224318284,64.28896835,194.15,194.14,1e-08]
[1755224318587,64.99896835,194.15,194.14,1e-08]
[1755224318987,64.28896835,194.15,194.14,1e-08]
[1755224319178,59.64546707,194.15,194.14,1e-08]
[1755224319375,64.2844924,194.15,194.14,1e-08]
[1755224320591,64.9944924,194.15,194.14,1e-08]
[1755224320792,64.2844924,194.15,194.14,1e-08]
[1755224321161,68.61280844,194.15,194.14,0.71000001]
[1755224322594,64.2844924,194.15,194.14,0.71000001]
[1755224322804,54.49033442,194.15,194.14,0.71000001]
[1755224322977,52.42533842,194.15,194.14,5.35350129]
[1755224323299,58.92533842,194.15,194.14,5.35350129]
[1755224323485,58.92533842,194.15,194.14,0.71000001]
[1755224323993,63.5688397,194.15,194.14,0.71000001]
[1755224324804,93.5688397,194.15,194.14,0.71000001]
[1755224325305,98.7194964,194.15,194.14,0.71000001]
[1755224326595,93.5688397,194.15,194.14,0.71000001]
[1755224326776,88.92533842,194.15,194.14,0.71000001]
[1755224327586,37.31912285,194.15,194.14,5.35350129]
[1755224327894,73.81912285,194.15,194.14,0.71000001]
[1755224328599,39.9641131,194.15,194.14,0.71000001]
[1755224330474,63.5617331,194.15,194.14,1e-08]
[1755224330780,53.60747453,194.15,194.14,1e-08]
[1755224331094,73.8643468,194.15,194.14,0.71000001]
[1755224331291,98.7136901,194.15,194.14,0.71000001]
[1755224331480,103.8643468,194.15,194.14,1e-08]
[1755224333901,94.07018882,194.15,194.14,0.71000001]
[1755224334790,98.7136901,194.15,194.14,0.71000001]
[1755224335185,103.8643468,194.15,194.14,1e-08]
[1755224335390,99.22084552,194.15,194.14,1e-08]
[1755224335597,100.01644365,194.15,194.14,1e-08]
[1755224335783,103.86627543,194.15,194.14,1e-08]
[1755224338811,103.86774384,194.15,194.14,1e-08]
[1755224339814,73.86774384,194.15,194.14,1e-08]
[1755224340506,68.71708714,194.15,194.14,1e-08]
[1755224340704,68.71708714,194.15,194.14,0.71000001]
[1755224340910,68.71708714,194.15,194.14,1e-08]
[1755224341293,73.86774384,194.15,194.14,1e-08]
[1755224341912,78.87605988,194.15,194.14,1e-08]
[1755224342801,108.87605988,194.15,194.14,1e-08]
[1755224343697,15.10621557,194.14,194.12,0.03]
[1755224343919,67.88063095,194.13,194.12,0.03]
[1755224344098,68.56063095,194.13,194.12,0.03]
[1755224344297,97.88063095,194.13,194.12,0.03]
[1755224344598,98.56063095,194.13,194.12,0.03]
[1755224345414,102.77557833,194.13,194.12,0.03]
[1755224345613,107.92676567,194.13,194.12,0.03]
[1755224345914,15.10621557,194.12,194.1,0.03]
[1755224346118,93.54513014,194.11,194.1,0.03]
[1755224346296,94.22513014,194.11,194.1,0.03]
[1755224346906,101.44184323,194.11,194.1,0.03]
[1755224351710,15.10621557,194.1,194.08,0.03]
[1755224351910,52.42162886,194.09,194.08,0.03]
[1755224352225,93.54513014,194.09,194.08,0.03]
[1755224352402,98.18863214,194.09,194.08,0.03]
[1755224352595,102.52018071,194.09,194.08,0.03]
[1755224353023,107.67242966,194.09,194.08,0.03]
[1755224353214,78.43891529,194.09,194.08,0.74]
[1755224353520,48.43891529,194.09,194.08,0.74]
[1755224353730,43.79541329,194.09,194.08,0.74]
[1755224356807,3.4641131,194.09,194.08,5.38350128]
[1755224357006,3.4641131,194.09,194.08,5.89251442]
[1755224357203,3.4641131,194.09,194.08,10.5360157]
[1755224357929,3.4641131,194.09,194.08,5.38350128]
[1755224358837,3.4641131,194.09,194.08,0.74]
[1755224360532,3.4641131,194.09,194.08,5.38350128]
[1755224360717,3.4641131,194.09,194.08,10.5360157]
[1755224362926,3.4641131,194.14,194.08,10.5360157]
[1755224363137,3.4641131,194.13,194.12,4.64350128]
[1755224363516,3.4641131,194.13,194.12,5.35350128]
[1755224364245,3.4641131,194.13,194.12,0.71]
[1755224365036,3.4641131,194.13,194.12,10.50495398]
[1755224368633,3.4641131,194.14,194.12,10.50495398]
[1755224368940,3.4641131,194.13,194.12,10.50495398]
[1755224369115,3.4641131,194.14,194.12,10.50495398]
[1755224369318,3.4641131,194.13,194.12,10.50495398]
[1755224369516,3.4641131,194.14,194.12,10.50495398]
[1755224369740,3.4641131,194.13,194.12,5.8614527]
[1755224370035,3.4641131,194.14,194.12,10.50495398]
[1755224370217,3.46141506,194.14,194.12,5.1514527]
[1755224370422,3.46141506,194.14,194.09,18.03242184]
[1755224370939,3.46141506,194.14,194.1,0.69]
[1755224371238,0.06,194.15,194.13,4.64350128]
[1755224371438,0.06,194.15,194.14,5.33350128]
[1755224372426,0.06,194.15,194.14,10.48442329]
[1755224381051,0.74,194.15,194.14,9.79442329]
[1755224381255,0.74,194.15,194.11,4.64350128]
[1755224381422,5.38350128,194.15,194.1,4.64350128]
[1755224381623,0.68,194.14,194.1,4.64350128]
[1755224382334,5.32350128,194.14,194.09,9.79575023]
[1755224382647,0.68,194.13,194.09,5.15224895]
[1755224383821,5.32350128,194.13,194.08,0.03]
[1755224384017,4.64350128,194.12,194.08,0.03]
[1755224384249,5.32350128,194.12,194.08,0.03]
[1755224384444,0.68,194.11,194.08,0.03]
[1755224387123,5.32350128,194.11,194.08,0.03]
[1755224387523,5.32350128,194.1,194.08,0.03]
[1755224388128,0.68,194.09,194.08,0.03]
[1755224390232,5.32350128,194.09,194.08,0.03]
[1755224390438,0.68,194.09,194.08,0.03]
[1755224394037,15.78621557,194.09,194.08,0.03]
[1755224394238,23.88307647,194.09,194.08,0.03]
[1755224394638,29.03532542,194.09,194.08,0.03]
[1755224395941,23.88307647,194.09,194.08,0.03]
[1755224396149,19.23957519,194.09,194.08,0.03]
[1755224396358,3.45335962,194.09,194.08,0.03]
[1755224396539,0.68,194.09,194.08,0.03]
[1755224399449,8.7768609,194.09,194.08,0.03]
[1755224399760,13.92910985,194.09,194.08,0.03]
[1755224400553,4.13335962,194.09,194.08,0.03]
[1755224400763,3.45335962,194.09,194.08,0.03]
[1755224401247,4.17335962,194.09,194.08,0.03]
[1755224401446,8.8168609,194.09,194.08,0.03]
[1755224401862,13.96910985,194.09,194.08,0.03]
[1755224402055,43.96910985,194.09,194.08,0.03]
[1755224402656,62.91459139,194.09,194.08,0.03]
[1755224402959,67.14630589,194.09,194.08,0.03]
[1755224404940,62.91459139,194.09,194.08,0.03]
[1755224405152,99.33459139,194.09,194.08,0.03]
[1755224405657,95.49532542,194.09,194.08,0.03]
[1755224406163,90.34307647,194.09,194.08,0.03]
[1755224407742,95.49532542,194.09,194.08,0.03]
[1755224410148,59.07532542,194.09,194.08,0.03]
[1755224410360,95.49532542,194.09,194.08,0.03]
[1755224410862,33.45335962,194.09,194.08,0.74]
[1755224411065,30.0,194.09,194.08,0.74]
[1755224411370,30.0,194.09,194.08,0.03]
[1755224412160,36.42,194.1,194.08,0.03]
[1755224412670,3.45072148,194.09,194.08,0.03]
[1755224412842,4.17072148,194.09,194.08,0.03]
[1755224413046,8.81422276,194.09,194.08,0.03]
[1755224414266,23.92043833,194.09,194.08,0.03]
[1755224415478,29.07268728,194.09,194.08,0.03]
[1755224416549,59.07268728,194.09,194.08,0.03]
[1755224416763,53.92043833,194.09,194.08,0.03]
[1755224417254,59.07268728,194.09,194.08,0.03]
[1755224417558,60.41779028,194.09,194.08,0.03]
[1755224417983,55.26554133,194.09,194.08,0.03]
[1755224418145,53.20043833,194.09,194.08,0.03]
[1755224419974,55.98554133,194.09,194.08,0.03]
[1755224420664,53.92043833,194.09,194.08,0.03]
[1755224421174,53.86891451,194.09,194.08,0.03]
[1755224421561,57.70980349,194.09,194.08,0.03]
[1755224423055,53.86891451,194.09,194.08,0.03]
[1755224423262,52.35055601,194.09,194.08,0.03]
[1755224423459,56.99405729,194.09,194.08,0.03]
[1755224423666,57.71405729,194.09,194.08,0.03]
[1755224423870,32.86630624,194.09,194.08,0.03]
[1755224424175,37.19785481,194.09,194.08,0.03]
[1755224424371,15.10621557,194.08,194.06,0.03]
[1755224424568,49.21780047,194.07,194.06,0.03]
[1755224424771,79.93780047,194.07,194.06,0.03]
[1755224425176,95.86763955,194.07,194.06,0.03]
[1755224426269,95.86763955,194.07,194.04,0.1]
[1755224426470,29.23783803,194.05,194.04,0.1]
[1755224426657,69.48298081,194.05,194.04,0.1]
[1755224427062,65.86817063,194.05,194.04,0.1]
[1755224427379,71.73300963,194.05,194.04,0.1]
[1755224427876,95.86817063,194.05,194.04,0.1]
[1755224428178,101.73300963,194.05,194.04,0.1]
[1755224432263,107.49757501,194.05,194.04,0.1]
[1755224433089,110.96486628,194.05,194.04,0.1]
[1755224434873,105.2003009,194.05,194.04,0.1]
[1755224435377,110.9766063,194.05,194.04,0.1]
[1755224435574,80.9766063,194.05,194.04,0.1]
[1755224436289,15.10621557,194.04,194.0,0.03]
[1755224436488,19.43787277,194.02,194.0,0.03]
[1755224436786,48.35593533,194.01,194.0,0.03]
[1755224437169,49.51244975,194.01,194.0,0.03]
[1755224437374,73.93713876,194.01,194.0,0.03]